bitfinex/quotes_ETHUSD_20240715
["timestamp","ask_amount","ask_price","bid_price","bid_amount"]
[1721056724741,0.3442,3374.8,3373.4,2.2677]
[1721056726141,3.2967,3375.2,3373.4,2.2677]
[1721056726441,0.55,3375.1,3373.4,2.2677]
[1721056726624,3.442,3375.0,3373.4,2.2677]
[1721056726813,3.0,3374.9,3373.4,2.2677]
[1721056728454,0.55,3374.8,3373.4,2.2677]
[1721056728615,1.0115,3374.7,3373.4,2.2677]
[1721056728818,3.442,3374.5,3373.4,2.2677]
[1721056729316,3.0,3374.4,3373.4,2.2677]
[1721056731253,3.0,3374.4,3372.9,2.4768]
[1721056731552,0.55,3374.3,3372.9,2.4768]
[1721056731745,0.99554,3374.2,3372.9,2.4768]
[1721056737968,7.4,3374.7,3373.1,2.4724]
[1721056738176,7.4,3374.7,3373.3,2.4724]
[1721056738531,7.4,3374.7,3373.5,2.4724]
[1721056738775,7.4,3374.7,3373.7,2.4724]
[1721056738945,7.4,3375.0,3373.7,2.4724]
[1721056739266,3.442,3375.5,3373.7,2.4724]
[1721056739486,1.5,3376.9,3373.6,0.30224]
[1721056739487,3.442,3376.5,3373.8,3.0224]
[1721056739654,0.3442,3376.4,3374.0,2.2713]
[1721056739983,0.3442,3376.4,3374.2,2.2713]
[1721056739984,3.442,3376.0,3374.2,2.2713]
[1721056740855,3.442,3375.5,3374.2,2.2713]
[1721056741473,3.55,3375.4,3374.2,2.2713]
[1721056742443,3.0,3375.3,3374.2,2.2713]
[1721056742679,0.6,3375.3,3374.2,2.49843]
[1721056742876,0.6,3375.3,3374.2,2.2713]
[1721056744263,3.0,3375.6,3374.2,2.2713]
[1721056744476,2.584,3376.0,3374.2,2.2713]
[1721056744786,3.0,3375.9,3374.2,2.2713]
[1721056745576,2.9282,3376.4,3374.2,2.2713]
[1721056745883,2.9282,3376.4,3374.3,2.8822]
[1721056746044,2.9282,3376.4,3374.5,2.3322]
[1721056746045,0.29282,3376.3,3374.5,2.3322]
[1721056746469,2.8807,3376.8,3374.6,0.55]
[1721056746691,2.8807,3376.8,3374.7,2.4955]
[1721056747058,2.8807,3376.8,3374.6,0.55]
[1721056747059,2.584,3376.8,3374.9,2.4955]
[1721056747295,0.55,3377.0,3375.1,2.4955]
[1721056747588,0.2967,3377.1,3375.2,0.05924551]
[1721056747796,0.584172,3377.0,3375.3,0.25547455]
[1721056747953,0.584172,3377.0,3375.4,0.05924551]
[1721056748363,0.584172,3377.0,3375.5,2.4955]
[1721056748567,0.584172,3377.0,3375.6,0.05924053]
[1721056748759,0.584172,3377.0,3375.5,2.4955]
[1721056748960,0.46454412,3377.6,3375.6,0.27509746]
[1721056749629,3.441,3377.8,3375.7,2.4955]
[1721056749808,3.441,3377.8,3375.8,0.05923512]
[1721056750176,3.441,3377.8,3375.9,2.4955]
[1721056750393,0.2967,3377.9,3376.1,2.2702]
[1721056750698,0.6224,3377.9,3376.2,0.23294302]
[1721056751017,0.6224,3377.9,3376.1,2.2702]
[1721056751984,3.441,3377.8,3376.1,2.2702]
[1721056752215,3.5106,3377.7,3376.1,2.2702]
[1721056752419,3.0,3377.6,3376.1,2.2702]
[1721056752735,3.441,3377.3,3376.1,2.2702]
[1721056752938,0.3441,3377.2,3376.1,2.2702]
[1721056753230,3.3441,3377.2,3376.1,2.2702]
[1721056753388,0.55,3377.1,3376.1,2.2702]
[1721056753718,3.55,3377.1,3376.1,2.2702]
[1721056753937,6.51114,3377.1,3374.6,2.4966]
[1721056754089,3.123,3376.8,3374.7,0.648422]
[1721056754294,3.123,3376.8,3374.6,2.4966]
[1721056754484,2.9613,3376.9,3374.6,2.4966]
[1721056754485,3.55,3376.7,3374.6,2.4966]
[1721056754709,0.55,3376.7,3374.6,2.4966]
[1721056757551,3.0,3376.8,3374.6,2.4966]
[1721056757703,4.325724,3377.0,3374.8,2.3409]
[1721056757887,6.90619761,3376.9,3374.9,0.23409]
[1721056758093,3.55,3376.8,3374.9,0.23409]
[1721056758514,3.55,3376.8,3374.8,2.3409]
[1721056758515,13.37209,3376.8,3374.8,2.3409]
[1721056758685,6.38126,3376.6,3374.8,2.3409]
[1721056758895,3.123,3376.7,3374.8,2.3409]
[1721056759205,3.55,3376.6,3374.8,2.3409]
[1721056759423,2.96148,3376.7,3374.8,2.3409]
[1721056759749,3.55,3376.5,3374.8,2.3409]
[1721056759911,4.37357176,3376.6,3374.8,2.3409]
[1721056760108,3.0,3376.4,3374.8,2.3409]
[1721056760338,4.37357176,3376.6,3374.8,2.3409]
[1721056760525,3.78145718,3376.5,3375.0,2.4428]
[1721056760741,0.78145718,3376.5,3375.0,2.4428]
[1721056762200,0.55,3376.4,3375.0,2.4428]
[1721056762403,0.55,3376.4,3373.3,1.22574603]
[1721056762404,3.441,3375.8,3373.6,2.4428]
[1721056762740,6.40326,3375.8,3373.6,2.4428]
[1721056762926,6.40326,3375.8,3373.8,2.3823]
[1721056762927,3.640326,3375.7,3373.8,2.3823]
[1721056763501,9.52583,3376.3,3373.8,2.3823]
[1721056763502,2.96209,3376.0,3373.8,2.3823]
[1721056763940,3.0,3375.9,3373.8,2.3823]
[1721056764110,3.55,3375.9,3373.8,2.3823]
[1721056764296,2.96226,3375.8,3373.8,2.3823]
[1721056764517,3.0,3375.7,3373.8,2.3823]
[1721056764835,0.651226,3375.6,3374.0,2.4421]
[1721056767215,3.0,3376.1,3374.0,2.4421]
[1721056767438,2.96183,3376.3,3374.0,2.4421]
[1721056767439,3.0,3376.2,3374.0,2.4421]
[1721056768176,0.78145718,3376.5,3374.4,2.4421]
[1721056768568,2.96164,3376.5,3374.4,2.4421]
[1721056768770,2.582,3376.3,3374.4,2.4421]
[1721056769426,2.96199,3376.1,3374.4,2.4421]
[1721056769816,3.55,3376.0,3374.4,2.4421]
[1721056770247,3.0,3376.0,3374.4,2.4421]
[1721056770553,2.582,3376.3,3374.6,2.3072]
[1721056770554,0.3,3375.9,3374.6,2.3072]
[1721056770722,6.51197,3376.2,3374.6,2.3072]
[1721056772216,2.96205,3376.1,3374.6,2.3072]
[1721056772418,3.55,3376.0,3374.6,2.3072]
[1721056773156,3.0,3376.0,3374.6,2.3072]
[1721056773353,0.3,3375.9,3374.7,0.23072]
[1721056773653,0.3,3375.9,3374.8,2.3713]
[1721056774026,5.96174,3376.4,3374.8,2.3713]
[1721056774212,0.55,3376.3,3374.8,2.3713]
[1721056774515,3.51183,3376.3,3374.8,2.3713]
[1721056774867,5.96193,3376.2,3374.8,2.3713]
[1721056775032,0.55,3376.1,3374.8,2.3713]
[1721056775211,0.964393,3376.0,3374.8,2.3713]
[1721056775741,3.926503,3376.0,3374.8,2.3713]
[1721056775926,2.96228,3375.8,3374.8,2.3713]
[1721056776134,2.96243,3375.7,3374.8,2.3713]
[1721056776334,6.51243,3375.7,3374.8,2.3713]
[1721056776555,1.560671,3375.6,3374.8,2.3713]
[1721056777162,4.523101,3375.6,3374.8,2.3713]
[1721056777457,3.0,3375.5,3374.8,2.3713]
[1721056777824,1.560671,3375.6,3374.8,2.3713]
[1721056778135,4.560671,3375.6,3374.8,2.3713]
[1721056778352,1.0522951,3375.5,3374.8,2.3713]
[1721056779675,5.96231,3375.8,3374.8,2.3713]
[1721056779983,3.0,3375.8,3374.8,2.3713]
[1721056780148,2.96176,3376.4,3374.8,2.3713]
[1721056780341,3.444,3376.7,3374.8,2.3713]
[1721056780342,3.25829,3376.6,3374.8,2.3713]
[1721056780744,2.9618,3376.4,3374.8,2.3713]
[1721056780938,0.32585,3376.3,3374.8,2.3713]
[1721056782458,0.2967,3376.6,3374.8,2.3713]
[1721056782659,5.96152,3376.7,3374.8,2.3713]
[1721056782854,5.96152,3376.7,3374.9,0.05925215]
[1721056783056,0.55,3376.6,3375.0,2.2863]
[1721056783287,3.0,3376.7,3375.1,2.2863]
[1721056783443,0.3,3376.6,3375.3,2.2863]
[1721056785905,2.96179,3376.4,3375.3,2.2863]
[1721056786104,3.55,3376.3,3375.3,2.2863]
[1721056786397,6.51182,3376.3,3375.3,2.2863]
[1721056786777,6.51182,3376.3,3375.3,1.84226]
[1721056786962,0.947361,3376.2,3375.3,1.84226]
[1721056787792,2.96237,3375.7,3374.3,0.51264731]
[1721056788096,2.96237,3375.7,3373.9,0.262658]
[1721056788097,3.55,3375.6,3373.9,0.51272835]
[1721056788267,0.947471,3375.5,3373.9,0.26724957]
[1721056788465,0.947471,3375.5,3373.5,2.15976738]
[1721056788466,0.947471,3375.5,3373.8,0.51271996]
[1721056788663,0.947471,3375.5,3373.9,0.51271996]
[1721056788859,0.947471,3375.5,3373.7,2.16006335]
[1721056789167,3.0,3375.5,3373.8,1.54313982]
[1721056789367,3.0,3375.5,3373.9,0.51271302]
[1721056789564,0.55,3375.6,3373.7,1.54564952]
[1721056789796,0.55,3375.7,3373.9,2.4643]
[1721056790170,3.51235,3375.7,3373.9,2.4643]
[1721056790377,3.947462,3375.6,3374.0,0.24643]
[1721056790572,0.55,3375.5,3374.0,0.24643]
[1721056790778,0.947462,3375.6,3374.1,2.4341]
[1721056791090,4.99374415,3376.1,3374.1,2.4341]
[1721056791091,3.0,3376.0,3374.1,2.4341]
[1721056791266,0.55,3375.9,3374.1,2.4341]
[1721056793781,3.51223,3375.9,3374.1,2.4341]
[1721056793981,3.0,3375.8,3374.1,2.4341]
[1721056794305,3.51237,3375.7,3374.1,2.4341]
[1721056794507,4.002463,3375.6,3374.1,2.4341]
[1721056794712,2.96262,3375.4,3374.1,2.4341]
[1721056795005,2.96284,3375.2,3374.1,2.4341]
[1721056795201,3.0,3375.1,3374.1,2.4341]
[1721056796907,2.96305,3374.9,3374.1,2.4341]
[1721056797109,1.545705,3374.8,3374.1,2.4341]
[1721056797305,4.545705,3374.8,3374.1,2.4341]
[1721056797502,2.96322,3374.7,3373.7,0.51271437]
[1721056797801,6.95737,3374.6,3373.7,0.51271437]
[1721056798006,6.51342,3374.5,3373.7,0.51271437]
[1721056798166,4.255569,3374.4,3373.7,0.51271437]
[1721056798368,2.585,3374.2,3373.7,0.51271437]
[1721056798603,3.0,3374.1,3373.7,0.51271437]
[1721056798913,3.0,3374.1,3373.4,0.92162075]
[1721056799074,3.0,3374.3,3373.4,0.92162075]
[1721056799274,0.3,3374.2,3373.4,0.92162075]
[1721056800413,3.0,3374.5,3373.4,0.92162075]
[1721056800637,3.0,3374.5,3373.5,2.2719]
[1721056800861,0.995705,3374.8,3373.5,2.2719]
[1721056801540,2.585,3375.4,3373.5,2.2719]
[1721056801699,2.96288,3375.1,3373.5,2.2719]
[1721056801899,3.135,3375.0,3373.5,2.2719]
[1721056802135,2.96305,3374.9,3373.5,2.2719]
[1721056802325,3.135,3375.0,3373.5,2.2719]
[1721056802326,3.55,3374.8,3373.5,2.2719]
[1721056802515,3.41,3374.7,3373.5,2.59125208]
[1721056802770,0.41,3374.7,3373.5,2.59125208]
[1721056802945,3.41,3374.7,3373.5,2.59125208]
[1721056803630,3.41,3374.7,3373.5,2.2719]
[1721056803832,0.55,3374.6,3373.5,2.2719]
[1721056804462,3.41,3374.7,3373.5,2.2719]
[1721056804681,3.0,3374.7,3373.5,2.2719]
[1721056807072,7.4,3374.8,3373.6,2.2922]
[1721056807637,7.4,3374.8,3373.8,2.2922]
[1721056807838,7.4,3374.8,3374.0,2.2922]
[1721056808235,0.09681186,3374.7,3374.0,2.2922]
[1721056811472,3.09681186,3374.7,3374.0,2.2922]
[1721056816389,3.09681186,3374.7,3373.5,2.3627]
[1721056816638,0.55,3374.6,3373.5,2.3627]
[1721056817243,0.09681186,3374.5,3373.5,2.3627]
[1721056817617,0.55,3374.4,3372.3,9.44531566]
[1721056817830,10.32323119,3374.4,3372.4,3.32672197]
[1721056817997,11.87422541,3374.4,3372.4,2.2893]
[1721056818200,3.06039186,3374.3,3372.4,2.2893]
[1721056818406,3.55,3374.2,3372.4,2.2893]
[1721056819310,0.09681186,3374.1,3372.4,2.2893]
[1721056819517,0.36468119,3374.0,3372.5,0.28022394]
[1721056819917,0.09681186,3373.9,3372.5,0.28022394]
[1721056820505,0.09681186,3373.9,3372.6,2.3389]
[1721056821144,3.09681186,3373.9,3372.6,2.3389]
[1721056821316,1.08614931,3373.8,3372.6,2.60081239]
[1721056821521,0.09681186,3373.7,3372.6,2.60081239]
[1721056822733,0.09681186,3373.7,3372.6,2.55538239]
[1721056823563,0.09681186,3373.7,3372.7,0.51288771]
[1721056823905,0.09681186,3373.7,3372.6,0.26191239]
[1721056823906,0.09681186,3373.7,3372.8,0.51288771]
[1721056824145,0.09681186,3373.7,3372.9,0.51288771]
[1721056824443,0.09681186,3373.7,3372.7,0.51288771]
[1721056824644,0.09681186,3373.7,3372.6,0.26191239]
[1721056824645,0.09681186,3373.7,3372.8,1.36523508]
[1721056824852,0.09681186,3373.7,3372.9,0.51288771]
[1721056825027,0.09681186,3373.7,3372.8,0.85234737]
[1721056825360,0.09681186,3373.7,3372.6,0.51289875]
[1721056825651,0.09681186,3373.7,3372.2,0.51289875]
[1721056825817,0.09681186,3373.7,3372.4,2.3949]
[1721056826023,0.09681186,3373.7,3372.5,0.51289875]
[1721056826218,0.09681186,3373.7,3372.4,2.3949]
[1721056826418,0.09681186,3373.7,3372.6,0.51290281]
[1721056826655,0.09681186,3373.7,3372.6,0.51290344]
[1721056826856,0.09681186,3373.7,3372.5,0.75239344]
[1721056827455,0.09681186,3373.7,3372.6,0.51290344]
[1721056827668,0.09681186,3373.7,3372.7,2.4224]
[1721056827869,0.09681186,3373.7,3372.8,0.31747934]
[1721056828234,0.09681186,3373.7,3372.8,0.83034357]
[1721056828428,0.09681186,3373.7,3372.9,2.4285]
[1721056828676,0.09681186,3373.7,3372.9,2.94136423]
[1721056829143,0.09681186,3373.7,3373.0,0.51286423]
[1721056829362,0.09681186,3373.7,3373.1,0.32588436]
[1721056830582,0.09681186,3373.7,3373.2,0.512814]
[1721056830735,0.09681186,3373.7,3373.1,0.32588436]
[1721056830935,0.09681186,3373.7,3373.2,0.51279494]
[1721056831240,0.09681186,3373.7,3373.1,0.32588436]
[1721056831446,0.09681186,3373.7,3373.2,1.88058176]
[1721056831663,0.09681186,3373.7,3373.2,0.8500056]
[1721056831865,0.09681186,3373.7,3373.2,0.33721284]
[1721056833982,0.09681186,3373.7,3372.9,3.97451569]
[1721056834267,0.09681186,3373.7,3372.9,2.4285]
[1721056834634,0.09681186,3373.7,3373.0,3.08958914]
[1721056834853,0.09681186,3373.7,3373.1,1.03067202]
[1721056835055,0.09681186,3373.7,3373.0,1.54601569]
[1721056835352,0.09681186,3373.7,3373.1,1.52164568]
[1721056835581,0.09681186,3373.7,3373.1,0.49097391]
[1721056835972,0.09681186,3373.7,3373.2,1.03064254]
[1721056836169,0.09681186,3373.7,3373.2,1.54599538]
[1721056836375,0.09681186,3373.7,3373.3,1.03060425]
[1721056836560,0.09681186,3373.7,3373.1,0.49097391]
[1721056836763,0.09681186,3373.7,3373.2,1.73542176]
[1721056837004,0.09681186,3373.7,3373.2,2.76353541]
[1721056837295,0.09681186,3373.7,3373.3,1.03062877]
[1721056837503,0.09681186,3373.7,3373.2,1.21759509]
[1721056837701,0.09681186,3373.7,3373.2,0.70478341]
[1721056838170,0.09681186,3373.7,3373.1,0.51282327]
[1721056838535,0.09681186,3373.7,3372.5,0.61774408]
[1721056838805,0.09681186,3373.7,3372.4,3.33741613]
[1721056838806,0.09681186,3373.7,3372.6,2.57712193]
[1721056838954,0.09681186,3373.7,3372.5,2.05924468]
[1721056839298,0.09681186,3373.7,3372.6,1.03087526]
[1721056839482,0.09681186,3373.7,3372.7,1.03087526]
[1721056839483,1.14649305,3373.7,3372.7,1.03087526]
[1721056839692,1.14649305,3373.7,3372.5,2.0592013]
[1721056839997,1.14649305,3373.7,3372.6,3.09001003]
[1721056840163,1.14649305,3373.7,3372.7,1.03083522]
[1721056840373,1.14649305,3373.7,3372.5,2.05923698]
[1721056840553,0.41464931,3373.6,3372.6,1.03087454]
[1721056840754,0.09681186,3373.5,3372.5,1.54637304]
[1721056840960,0.09681186,3373.5,3372.6,1.03089507]
[1721056841158,0.09681186,3373.5,3372.5,2.05928872]
[1721056841458,0.09681186,3373.5,3372.6,1.03088756]
[1721056841654,0.15611424,3373.4,3372.5,2.05926788]
[1721056841855,0.09681186,3373.3,3372.2,0.61774408]
[1721056842052,0.09681186,3373.3,3372.3,2.57742544]
[1721056842356,0.09681186,3373.3,3372.2,2.05947776]
[1721056842555,0.09681186,3373.3,3372.0,3.02774408]
[1721056842556,0.09681186,3373.3,3372.3,1.03097872]
[1721056842791,0.4089494,3373.3,3372.2,2.05944796]
[1721056842998,0.4089494,3373.3,3372.3,1.03097951]
[1721056843305,0.4089494,3373.3,3372.2,2.05946358]
[1721056843498,0.4089494,3373.3,3372.1,1.5464763]
[1721056843708,0.4089494,3373.3,3372.2,3.09047029]
[1721056843859,0.30188636,3373.2,3372.0,3.02774408]
[1721056844064,0.09681186,3373.1,3372.1,1.03099313]
[1721056844291,0.09681186,3373.1,3371.9,2.05965679]
[1721056844562,0.33986982,3373.0,3371.8,1.54664697]
[1721056844887,0.09681186,3372.9,3371.9,1.03109038]
[1721056845069,0.09681186,3372.9,3371.8,1.54665364]
[1721056845282,0.09681186,3372.9,3371.7,1.54665364]
[1721056845484,0.09681186,3372.9,3371.8,0.5130489]
[1721056845797,0.09681186,3372.9,3371.4,1.54680683]
[1721056845997,2.2767,3372.7,3371.5,0.51310141]
[1721056846200,2.2767,3372.7,3371.5,0.51309323]
[1721056846388,0.09681186,3372.6,3371.4,0.51309323]
[1721056846964,0.09681186,3372.6,3371.3,4.54680683]
[1721056847269,0.09681186,3372.6,3371.4,3.09107454]
[1721056847473,0.09681186,3372.6,3371.5,0.91827186]
[1721056848888,0.09681186,3372.6,3371.3,3.51310154]
[1721056849061,0.09681186,3372.6,3371.3,3.0]
[1721056849662,0.09681186,3372.6,3371.2,2.4739]
[1721056850701,0.09681186,3372.6,3371.2,5.4739]
[1721056850871,0.09681186,3372.6,3371.3,1.03113722]
[1721056851199,0.09681186,3372.6,3371.4,1.02198828]
[1721056852892,2.4681,3372.5,3371.4,1.02198828]
[1721056853091,2.4681,3372.5,3371.2,3.0]
[1721056853092,0.09681186,3372.4,3371.2,3.0]
[1721056853261,0.09681186,3372.4,3370.8,5.4569]
[1721056853465,0.09681186,3372.4,3370.9,1.58128813]
[1721056853687,0.09681186,3372.4,3370.9,3.55]
[1721056854105,0.09681186,3372.4,3371.0,1.03122531]
[1721056854283,0.25649119,3372.3,3371.1,0.76558694]
[1721056854488,0.09681186,3372.2,3371.1,0.76558694]
[1721056859297,0.09681186,3372.2,3370.9,3.0]
[1721056859506,0.09681186,3372.2,3370.8,2.4569]
[1721056860717,2.3563,3372.1,3370.6,3.61835605]
[1721056860919,2.3563,3371.6,3369.8,0.61835605]
[1721056861234,2.584,3371.7,3369.3,3.20235605]
[1721056861235,6.3563,3371.5,3369.3,3.20235605]
[1721056861388,6.3563,3371.5,3369.7,2.584]
[1721056861587,6.3563,3371.5,3370.2,2.3436]
[1721056861986,2.3563,3371.5,3370.2,2.3436]
[1721056863223,2.4536,3372.3,3370.2,2.3436]
[1721056863524,2.4536,3372.3,3370.3,1.03138813]
[1721056863726,0.80376,3372.2,3370.4,0.65773442]
[1721056864031,2.3105,3372.1,3370.4,0.65773442]
[1721056864395,5.3105,3372.1,3370.4,0.65773442]
[1721056865238,5.3105,3372.1,3370.5,2.584]
[1721056865388,2.3105,3372.1,3370.5,3.134]
[1721056865590,2.4723,3372.5,3371.0,2.4237]
[1721056866196,2.4723,3372.5,3370.9,2.584]
[1721056866392,2.4723,3372.5,3370.6,2.80287344]
[1721056866616,0.24723,3372.4,3370.7,0.58125214]
[1721056867405,2.4671,3372.3,3370.7,0.58125214]
[1721056867616,2.4671,3372.3,3370.6,0.37917344]
[1721056868548,2.9382,3372.2,3370.4,0.51311343]
[1721056868762,2.9382,3372.2,3370.3,0.51311343]
[1721056869081,2.9382,3372.2,3370.2,2.4028]
[1721056869082,3.0,3372.1,3370.4,0.51311343]
[1721056869295,2.3882,3372.0,3370.4,0.51311343]
[1721056869568,2.3882,3371.8,3370.1,0.51325265]
[1721056869783,2.3882,3371.8,3370.2,0.51325265]
[1721056869989,2.3882,3371.8,3370.0,0.51325265]
[1721056870625,2.3882,3371.8,3369.9,0.51325265]
[1721056870827,2.3882,3371.8,3370.0,0.51325265]
[1721056871050,0.23882,3371.7,3370.1,0.54821526]
[1721056871366,3.23882,3371.7,3370.1,0.54821526]
[1721056871781,3.23882,3371.7,3370.1,1.06146791]
[1721056872068,3.23882,3371.7,3370.1,0.54821526]
[1721056872231,3.23882,3371.7,3370.1,1.06146791]
[1721056872433,3.23882,3371.7,3370.1,0.54821526]
[1721056872434,0.562702,3371.6,3370.1,0.54821526]
[1721056872832,2.4289,3371.5,3370.1,1.06150052]
[1721056873030,2.4289,3371.5,3370.1,0.54821526]
[1721056873232,2.4289,3371.5,3370.0,0.51328526]
[1721056874063,2.4289,3371.5,3369.8,2.584]
[1721056874247,2.4289,3371.5,3370.2,2.584]
[1721056874578,2.4289,3371.5,3370.6,2.584]
[1721056874795,2.2858,3372.2,3370.6,2.584]
[1721056875089,2.2858,3372.2,3370.7,0.51328526]
[1721056875470,2.2858,3372.2,3370.6,2.89372853]
[1721056875633,2.2858,3372.2,3370.7,3.51315005]
[1721056875835,2.2858,3372.2,3371.0,2.584]
[1721056876048,2.2858,3372.2,3371.1,0.98098783]
[1721056876264,2.495,3373.3,3371.4,5.0357]
[1721056876462,2.495,3373.3,3371.5,3.51315005]
[1721056876694,2.495,3373.3,3371.6,0.51315005]
[1721056876851,2.495,3373.3,3371.7,0.51315005]
[1721056877058,0.2495,3373.2,3371.8,0.86446506]
[1721056877254,0.2495,3373.2,3371.8,0.35131501]
[1721056877696,2.495,3373.3,3371.8,3.44846506]
[1721056877901,2.495,3373.3,3371.9,3.51315005]
[1721056878203,2.495,3373.3,3372.0,0.51315005]
[1721056878367,2.495,3373.3,3371.9,3.0]
[1721056880080,2.495,3373.3,3371.9,3.51299434]
[1721056880313,2.4163,3374.0,3372.0,0.48927868]
[1721056880516,2.4163,3374.0,3372.2,2.584]
[1721056880654,2.4163,3374.0,3372.3,3.0]
[1721056883152,2.4163,3374.0,3372.0,0.48927868]
[1721056883994,0.55,3373.9,3372.0,0.48927868]
[1721056884194,0.59663,3373.8,3372.1,0.30972853]
[1721056884780,0.59663,3373.8,3372.2,2.584]
[1721056885920,2.264,3373.7,3372.2,2.584]
[1721056887383,2.584,3373.6,3371.8,2.51529111]
[1721056887633,2.584,3373.6,3371.6,3.40383693]
[1721056887634,5.3602,3373.5,3371.6,2.4775]
[1721056888000,5.3602,3373.5,3371.4,2.16410108]
[1721056888001,2.3742,3373.4,3371.4,2.16410108]
[1721056888323,2.3742,3373.4,3371.5,3.7451291]
[1721056888542,2.3742,3373.4,3371.6,1.03102802]
[1721056888681,0.23742,3373.3,3371.6,1.03102802]
[1721056889036,3.23742,3373.3,3371.6,3.0]
[1721056889321,3.23742,3373.3,3371.4,5.16410108]
[1721056889541,2.268,3373.2,3371.5,1.03107869]
[1721056889699,2.268,3373.1,3371.4,3.0]
[1721056890029,2.268,3373.1,3371.0,2.47288006]
[1721056890030,2.3991,3372.9,3371.0,0.61755795]
[1721056890245,2.3991,3372.9,3370.9,2.584]
[1721056890385,2.3991,3372.8,3370.9,2.584]
[1721056890804,5.3991,3372.8,3371.0,1.03128345]
[1721056891216,2.3991,3372.8,3371.0,1.03128345]
[1721056891420,2.3154,3372.6,3371.0,1.03128345]
[1721056891622,2.3154,3372.5,3370.5,5.054]
[1721056891829,2.8654,3372.5,3370.6,1.03136595]
[1721056891981,3.0,3372.4,3370.6,1.03136595]
[1721056892187,0.88654,3372.3,3370.7,0.7749467]
[1721056892993,2.4269,3372.2,3370.7,0.7749467]
[1721056893321,5.4269,3372.2,3370.7,0.7749467]
[1721056893935,5.4269,3372.2,3370.7,0.7599467]
[1721056896631,3.0,3372.2,3370.7,0.7599467]
[1721056896811,3.0,3372.2,3370.1,4.9881]
[1721056896812,2.3707,3372.1,3370.1,4.9881]
[1721056897015,2.3707,3372.1,3370.2,4.03146885]
[1721056897257,2.3707,3372.1,3370.2,3.0]
[1721056897820,2.9207,3372.0,3370.2,3.0]
[1721056898002,2.9207,3372.0,3370.2,3.5584]
[1721056898003,2.3707,3371.8,3370.2,3.5584]
[1721056899458,2.3707,3371.8,3369.7,3.0]
[1721056899674,2.3707,3371.8,3369.6,3.0]
[1721056899872,6.17607,3371.9,3369.6,3.0]
[1721056899873,0.55,3371.7,3369.6,3.0]
[1721056900070,2.584,3371.5,3369.6,3.0]
[1721056900222,2.3835,3371.3,3369.7,0.3]
[1721056900554,2.3835,3371.3,3369.2,3.6186262]
[1721056900715,2.3835,3371.3,3369.3,1.03172975]
[1721056901860,2.3835,3371.3,3369.4,0.55]
[1721056902227,2.3835,3371.3,3369.3,0.55]
[1721056902845,2.3835,3371.3,3369.2,3.0]
[1721056903045,0.551925,3371.2,3369.3,2.53914756]
[1721056903363,0.551925,3371.2,3369.4,3.61573101]
[1721056903551,0.551925,3371.2,3369.5,3.0]
[1721056903760,2.3835,3371.3,3369.5,3.0]
[1721056904123,2.3241,3371.2,3369.5,3.0]
[1721056904354,2.3241,3371.2,3369.3,1.50741655]
[1721056906161,2.3241,3371.2,3369.3,0.95741655]
[1721056906366,2.3532,3371.0,3369.0,2.584]
[1721056906675,2.3532,3371.0,3369.1,1.58178481]
[1721056906855,2.3532,3371.0,3369.1,0.55]
[1721056907568,2.3532,3371.0,3369.4,2.584]
[1721056908849,2.3532,3371.0,3369.4,4.9251]
[1721056909048,2.3532,3371.0,3369.9,2.584]
[1721056914659,2.3532,3371.0,3370.0,0.55]
[1721056915570,2.3532,3371.0,3369.5,6.07651]
[1721056915872,2.3532,3371.0,3369.6,0.55]
[1721056916793,2.3532,3371.0,3369.5,0.49251]
[1721056916946,2.584,3371.5,3369.1,3.09735097]
[1721056916947,2.3659,3370.8,3369.1,2.584]
[1721056918040,2.3659,3370.8,3369.1,3.09735097]
[1721056918484,2.3659,3370.8,3369.2,0.51335097]
[1721056919009,2.3659,3370.8,3369.3,0.55]
[1721056919173,2.3659,3370.8,3369.2,1.0634005]
[1721056919378,3.366022,3370.8,3369.3,0.64074005]
[1721056919560,2.3532,3370.7,3369.4,0.55]
[1721056920014,2.3532,3370.7,3369.4,1.0634005]
[1721056920855,2.3532,3370.7,3369.4,0.55]
[1721056921207,2.3209,3370.5,3369.2,0.5134005]
[1721056921424,2.3209,3370.5,3369.3,0.55]
[1721056921712,2.3209,3370.5,3369.2,1.06343804]
[1721056922004,2.3209,3370.5,3369.2,0.55]
[1721056922391,2.3209,3370.5,3369.1,1.06344889]
[1721056922589,0.53209,3370.4,3369.2,0.89579378]
[1721056922777,0.53209,3370.4,3369.3,0.55]
[1721056923610,2.2536,3370.3,3369.1,0.51346112]
[1721056923813,2.2536,3370.3,3369.2,0.55]
[1721056924015,2.2536,3370.3,3368.9,0.51347642]
[1721056924242,0.53209,3370.4,3368.8,0.51347642]
[1721056924243,2.532169,3370.2,3368.8,0.51347642]
[1721056924531,2.532169,3370.2,3368.0,2.584]
[1721056924682,2.532169,3370.2,3368.1,4.54555229]
[1721056924879,2.532169,3370.2,3368.2,0.51351263]
[1721056925108,2.7879259,3370.1,3368.3,1.12326389]
[1721056925297,2.7879259,3370.1,3368.4,0.51351263]
[1721056925625,2.7879259,3370.1,3368.3,0.60975126]
[1721056925626,2.7879259,3370.1,3368.5,0.51351263]
[1721056925809,2.7879259,3370.1,3368.6,0.51351263]
[1721056925983,2.7879259,3370.1,3368.7,0.51351263]
[1721056926178,2.3661,3369.9,3368.3,0.60975126]
[1721056926381,2.3661,3369.9,3368.4,1.06351569]
[1721056926676,2.3661,3369.9,3368.5,0.51351569]
[1721056926880,2.3661,3369.9,3368.6,1.06351569]
[1721056927104,2.3661,3369.9,3368.7,0.51351569]
[1721056927309,0.26727495,3369.8,3368.8,1.06351569]
[1721056927513,0.26727495,3369.8,3368.4,0.55]
[1721056927514,0.26727495,3369.8,3368.5,0.51351569]
[1721056927817,0.26727495,3369.8,3368.4,0.55]